bitfinex/quotes_ETHUSD_20250324
["timestamp","ask_amount","ask_price","bid_price","bid_amount"]
[1742824027502,4.79847,2084.0,2083.6,4.96203877]
[1742824027802,7.79826,2084.1,2083.6,9.76119877]
[1742824028015,4.7985,2084.0,2083.6,4.96184877]
[1742824028201,0.7866,2084.6,2083.8,4.79871]
[1742824028403,4.79696,2084.7,2084.2,0.6979]
[1742824028639,4.79662,2084.8,2084.3,9.85105433]
[1742824028934,9.59314,2084.9,2084.3,9.85094433]
[1742824029089,0.795,2085.1,2084.3,9.85094433]
[1742824029090,5.59109,2085.1,2084.4,4.79753]
[1742824029291,5.59106,2085.1,2084.5,4.79718]
[1742824029622,4.79665,2084.8,2084.6,0.6979]
[1742824032528,4.79593,2085.1,2085.0,0.15521887]
[1742824032723,3.0,2085.2,2085.0,0.15521887]
[1742824032889,0.01,2085.4,2085.1,4.79581]
[1742824033095,0.01,2085.4,2085.2,4.79547]
[1742824033414,0.01,2085.4,2085.2,4.94992243]
[1742824033593,0.01,2085.4,2085.2,0.15445243]
[1742824033788,0.01,2085.4,2085.3,5.49337]
[1742824034089,0.01,2085.4,2085.3,0.85198147]
[1742824034617,0.01,2085.4,2085.3,5.64745147]
[1742824034792,0.01,2085.4,2085.3,10.22900545]
[1742824034995,1e-05,2085.4,2085.3,10.18105962]
[1742824035313,1e-05,2085.4,2085.3,10.73105962]
[1742824035902,1e-05,2085.4,2085.3,10.18105962]
[1742824036199,1e-05,2085.4,2085.3,10.73105962]
[1742824037219,1e-05,2085.4,2085.3,10.18105962]
[1742824039387,1e-05,2085.4,2085.3,10.73105962]
[1742824042225,0.1230105,2086.0,2085.9,4.79409]
[1742824042438,0.1230105,2086.0,2085.9,13.662924]
[1742824042598,0.1230105,2086.0,2085.9,13.80865442]
[1742824043215,0.1230105,2086.0,2085.9,9.84982042]
[1742824043422,0.1230105,2086.0,2085.9,10.54772042]
[1742824044843,0.1230105,2086.0,2085.9,11.4840892]
[1742824045702,0.1230105,2086.0,2085.9,10.7811892]
[1742824045912,0.1230105,2086.0,2085.9,9.84482042]
[1742824046099,0.1230105,2086.0,2085.9,5.05073042]
[1742824046301,0.1230105,2086.0,2085.9,9.84482042]
[1742824046501,0.1230105,2086.0,2085.9,12.55950052]
[1742824047355,0.1230105,2086.0,2085.9,13.25740052]
[1742824049134,0.1230105,2086.0,2085.9,16.80740052]
[1742824051012,0.1230105,2086.0,2085.9,16.25740052]
[1742824051209,0.1230105,2086.0,2085.9,16.80740052]
[1742824051820,0.1230105,2086.0,2085.9,16.25740052]
[1742824053811,5e-07,2086.0,2085.9,16.25740052]
[1742824054207,5e-07,2086.0,2085.9,16.80740052]
[1742824054916,5.62172,2087.3,2085.9,16.80740052]
[1742824054917,0.8308,2087.3,2087.0,4.79152]
[1742824055133,0.8308,2087.3,2087.1,9.6763]
[1742824055335,0.8308,2087.3,2087.1,5.02279709]
[1742824055525,0.8308,2087.3,2087.1,9.81412709]
[1742824055729,0.8308,2087.3,2087.1,5.02279709]
[1742824057750,0.8308,2087.3,2087.2,4.7911]
[1742824058052,0.01,2087.4,2087.3,4.79087]
[1742824058453,0.01,2087.4,2087.3,0.13398615]
[1742824058830,0.01,2087.4,2087.3,4.79087]
[1742824059144,0.01,2087.4,2087.3,0.13398615]
[1742824059344,0.01,2087.4,2087.2,5.77240971]
[1742824059652,0.01,2087.4,2087.3,0.13313366]
[1742824060156,4.8008,2087.4,2087.3,0.13315801]
[1742824060453,0.01,2087.4,2087.1,9.67633]
[1742824060651,0.01,2087.4,2087.3,0.13315801]
[1742824060652,4.80071,2087.4,2087.3,0.13315801]
[1742824060852,4.79087,2087.3,2087.2,0.13352826]
[1742824061066,4.79114,2087.2,2086.8,4.792]
[1742824061271,5.61422,2087.3,2087.1,4.87]
[1742824061473,4.7911,2087.2,2087.1,4.87]
[1742824061767,0.7688,2087.0,2086.6,30.216]
[1742824062052,0.7688,2087.0,2086.6,4.873]
[1742824062227,4.79225,2086.7,2086.6,4.873]
[1742824062653,5.57665,2086.5,2086.0,30.1287]
[1742824062853,5.57651,2086.5,2086.1,4.876]
[1742824063046,0.7838,2086.5,2086.2,4.7933]
[1742824063262,0.7838,2086.5,2086.1,9.66949]
[1742824063564,0.7838,2086.5,2086.2,4.79331]
[1742824063927,0.7838,2086.5,2086.1,4.876]
[1742824064126,5.57654,2086.5,2086.1,9.66954]
[1742824064321,0.7838,2086.5,2086.1,9.66948]
[1742824064553,0.7838,2086.5,2086.2,4.79335]
[1742824064929,0.7838,2086.5,2086.1,4.876]
[1742824065256,5.57651,2086.5,2086.1,4.876]
[1742824065434,4.79303,2086.4,2086.2,4.878]
[1742824066931,5.57656,2086.5,2086.2,4.878]
[1742824067259,4.79294,2086.4,2086.2,4.878]
[1742824067825,5.57656,2086.5,2086.2,4.878]
[1742824068157,0.7838,2086.5,2086.2,9.67139]
[1742824068555,5.57653,2086.5,2086.2,4.878]
[1742824069235,4.79294,2086.4,2086.3,0.1369881]
[1742824069452,5.57653,2086.5,2086.3,0.1369881]
[1742824071327,4.79294,2086.4,2086.3,0.1369881]
[1742824073062,9.309136,2086.4,2086.3,0.1369881]
[1742824073225,7.79294,2086.4,2086.3,0.1369881]
[1742824074762,7.79294,2086.4,2085.2,0.6979]
[1742824074763,4.79475,2085.7,2085.2,0.6979]
[1742824075076,4.79475,2085.7,2084.5,4.79719]
[1742824075077,0.7901,2085.7,2085.5,4.79498]
[1742824075361,0.7901,2085.7,2085.4,4.79523]
[1742824075533,0.7901,2085.7,2085.5,0.13543651]
[1742824077832,0.7901,2085.7,2085.5,4.93035651]
[1742824078467,0.7901,2085.7,2085.5,4.93028651]
[1742824078636,0.8149,2085.9,2085.7,4.79453]
[1742824078964,5.60837,2086.2,2085.8,4.92913192]
[1742824079364,4.79365,2086.1,2085.8,4.92913192]
[1742824079566,9.58747,2086.1,2085.8,0.13481192]
[1742824079877,4.79368,2086.1,2085.7,9.62949]
[1742824080169,4.79386,2086.0,2085.8,0.13481192]
[1742824080481,4.79368,2086.1,2085.7,9.62942]
[1742824080679,4.79368,2086.1,2085.9,0.13444117]
[1742824080839,4.79368,2086.1,2085.8,0.13481192]
[1742824081167,4.79391,2086.0,2085.9,0.13444117]
[1742824081352,4.79366,2086.1,2085.7,14.42379]
[1742824081553,4.79366,2086.1,2085.8,0.13481192]
[1742824081752,0.8149,2086.2,2085.9,4.79406]
[1742824081955,0.8149,2086.2,2086.0,0.13407046]
[1742824082160,0.8149,2086.2,2086.0,4.92784046]
[1742824082342,0.8149,2086.2,2086.0,0.13407046]
[1742824082963,4.79272,2086.5,2086.1,4.79363]
[1742824083152,5.55638,2086.4,2086.2,0.13332915]
[1742824083352,4.79317,2086.3,2086.2,0.13332915]
[1742824083637,9.12067,2086.3,2086.2,0.13332915]
[1742824083845,9.12067,2086.3,2085.7,4.824]
[1742824083846,0.7775,2085.7,2085.6,4.824]
[1742824084064,0.7775,2085.7,2085.6,4.95955352]
[1742824084246,5.57205,2085.7,2085.6,4.95955352]
[1742824084570,6.608694,2085.7,2085.6,0.13555352]
[1742824084765,4.79546,2085.4,2085.0,4.79615]
[1742824084976,4.79546,2085.4,2085.2,4.826]
[1742824085265,4.79507,2085.5,2085.3,0.1243836]
[1742824085467,4.79524,2085.4,2085.3,0.1243836]
[1742824085768,0.8303,2085.4,2085.1,4.826]
[1742824085971,8.549,2085.6,2085.2,4.92190226]
[1742824086469,13.34401,2085.6,2085.2,0.12631226]
[1742824089358,4.79434,2085.8,2085.6,0.12482863]
[1742824089758,4.79455,2085.7,2085.6,0.12482863]
[1742824089959,9.58876,2085.8,2085.6,0.12482863]
[1742824090160,4.79455,2085.7,2085.6,0.12482863]
[1742824091081,0.8108,2085.9,2085.6,0.12482863]
[1742824091248,0.8108,2085.9,2085.6,4.91952863]
[1742824091450,5.60491,2085.9,2085.6,0.12482863]
[1742824092179,4.79448,2085.8,2085.6,0.12482863]
[1742824092378,4.79455,2085.7,2085.6,0.12482863]
[1742824092688,9.58888,2085.8,2085.6,0.12482863]
[1742824092970,4.79437,2085.8,2085.6,0.12482863]
[1742824093376,9.58882,2085.8,2085.6,0.12482863]
[1742824093582,6.64489,2085.9,2085.6,0.12482863]
[1742824093775,4.79434,2085.8,2085.6,0.12482863]
[1742824093986,4.79455,2085.7,2085.6,0.12482863]
[1742824094482,9.58928,2085.7,2085.3,4.79544]
[1742824094650,4.79455,2085.7,2085.6,0.12458518]
[1742824094846,5.938283,2085.8,2085.4,4.79509]
[1742824095083,5.60491,2085.9,2085.5,0.12495603]
[1742824095253,5.60491,2085.9,2085.6,9.59662]
[1742824095254,0.8108,2085.9,2085.6,9.59662]
[1742824095458,7.79365,2086.1,2085.7,4.91887347]
[1742824095853,0.7903,2086.2,2085.7,0.12443347]
[1742824096054,4.79309,2086.4,2085.9,5.49197]
[1742824096264,4.79309,2086.4,2086.0,9.72182556]
[1742824096489,4.79296,2086.4,2086.0,9.72182556]
[1742824096676,4.79319,2086.3,2086.0,4.92807556]
[1742824096886,4.79352,2086.2,2086.0,4.92807556]
[1742824097187,5.55613,2086.1,2086.0,4.92807556]
[1742824097552,5.55613,2086.1,2086.0,0.12407556]
[1742824097776,10.34996,2086.1,2085.8,4.806]
[1742824097976,5.55613,2086.1,2085.9,0.12444627]
[1742824098190,4.7934,2086.2,2085.9,0.12444627]
[1742824098569,7.79299,2086.4,2086.0,4.79368]
[1742824098792,3.0,2086.5,2086.2,4.79331]
[1742824098957,3.0,2086.5,2086.3,0.12296364]
[1742824099487,7.79271,2086.5,2086.3,0.12296364]
[1742824100019,0.8001,2086.8,2086.4,4.79283]
[1742824100287,10.3443,2087.1,2086.7,4.79216]
[1742824100454,4.7918,2086.9,2086.7,4.805]
[1742824100657,4.7918,2086.9,2086.8,0.11969968]
[1742824101078,0.7614,2087.1,2086.6,4.802]
[1742824101079,4.79238,2086.7,2086.6,4.802]
[1742824101285,4.79253,2086.6,2086.5,4.802]
[1742824102400,5.57648,2086.7,2086.5,4.802]
[1742824102603,4.79238,2086.7,2086.3,4.79315]
[1742824102800,4.79238,2086.7,2086.2,9.59837]
[1742824103004,4.79238,2086.7,2086.1,4.804]
[1742824103005,4.79352,2086.2,2086.1,4.804]
[1742824103517,9.58802,2086.0,2085.6,4.79477]
[1742824103718,0.808,2086.2,2085.6,4.807]
[1742824103719,4.79417,2085.9,2085.6,4.807]
[1742824105173,0.808,2086.2,2085.6,4.807]
[1742824105372,4.79322,2086.3,2085.9,4.79392]
[1742824105705,4.79322,2086.3,2086.0,4.803]
[1742824105706,4.79317,2086.3,2086.0,4.803]
[1742824106576,4.79341,2086.2,2086.0,4.803]
[1742824106776,4.79317,2086.3,2086.0,4.803]
[1742824106777,9.58658,2086.3,2086.0,4.803]
[1742824107111,4.79321,2086.3,2086.0,4.803]
[1742824107500,7.79298,2086.4,2086.0,4.803]
[1742824107695,4.79317,2086.3,2086.0,9.59675]
[1742824108086,4.79317,2086.3,2086.0,4.803]
[1742824108287,12.5861,2086.4,2086.0,9.59683]
[1742824108473,12.58609,2086.4,2086.0,9.59683]
[1742824108977,5.61806,2087.1,2086.6,4.79234]
[1742824109199,5.61806,2087.1,2086.6,9.64934]
[1742824109407,4.79191,2086.9,2086.6,4.857]
[1742824109614,4.79161,2087.0,2086.6,4.857]
[1742824109825,4.79196,2086.9,2086.6,4.857]
[1742824110104,4.79161,2087.0,2086.6,9.6494]
[1742824110105,4.7916,2087.0,2086.6,9.6494]
[1742824110298,4.7916,2087.0,2086.6,10.71235164]
[1742824111009,4.7916,2087.0,2086.6,5.91995164]
[1742824111209,4.79225,2086.7,2086.6,4.857]
[1742824111508,5.56845,2086.7,2086.6,4.857]
[1742824112309,0.7762,2086.7,2086.1,1.66496228]
[1742824112486,4.79306,2086.4,2086.2,4.847]
[1742824112690,4.79304,2086.4,2086.2,4.847]
[1742824113013,4.79317,2086.3,2086.2,4.847]
[1742824113813,4.79346,2086.2,2085.8,30.83705]
[1742824114030,4.79441,2085.8,2085.7,4.843]
[1742824114332,4.79411,2085.9,2085.7,4.95580104]
[1742824114490,4.79386,2086.0,2085.7,4.95580104]
[1742824114683,7.79366,2086.1,2085.7,9.75029104]
[1742824115107,7.79366,2086.1,2085.7,4.95580104]
[1742824115293,4.79387,2086.0,2085.7,4.95580104]
[1742824115699,4.79368,2086.1,2085.7,9.75034104]
[1742824115910,3.0,2086.1,2085.7,4.95580104]
[1742824116112,4.79399,2086.0,2085.7,4.95580104]
[1742824116315,7.79378,2086.1,2085.7,9.75032104]
[1742824116499,3.0,2086.1,2085.8,4.79418]
[1742824117020,3.0,2086.3,2086.0,4.79376]
[1742824117234,5.56664,2086.5,2086.1,4.94836218]
[1742824117530,4.79304,2086.4,2086.1,4.94836218]
[1742824117678,4.79325,2086.3,2086.1,4.94836218]
[1742824117885,4.7934,2086.2,2086.1,4.94836218]
[1742824118500,7.7934,2086.2,2086.1,0.11236218]
[1742824118701,9.0966,2086.2,2086.1,0.11236218]
[1742824118909,4.79432,2085.8,2085.3,5.49325]
[1742824119107,4.79469,2085.7,2085.3,15.12754]
[1742824119422,5.54752,2085.8,2085.4,4.91082768]
[1742824119723,4.79455,2085.7,2085.4,0.11563768]
[1742824119891,5.54752,2085.8,2085.4,4.91070768]
[1742824120710,0.7532,2085.8,2085.5,4.79489]
[1742824120913,3.0,2085.9,2085.6,4.79473]
[1742824121115,4.7937,2086.1,2085.7,5.49235]
[1742824121304,4.7937,2086.1,2085.7,15.12474]
[1742824121501,3.7532,2086.3,2085.8,0.11529615]
[1742824121707,4.79408,2086.0,2085.8,0.11529615]
[1742824121996,4.79432,2085.8,2085.7,4.838]
[1742824122326,4.79415,2085.9,2085.7,4.838]
[1742824123320,5.273298,2086.0,2085.7,4.838]
[1742824123534,3.0,2086.0,2085.7,9.63234]
[1742824123706,3.0,2086.0,2085.7,14.42671]
[1742824123901,3.0,2086.1,2085.8,4.79411]
[1742824124107,4.79356,2086.2,2085.8,4.79411]
[1742824124330,4.79363,2086.1,2085.8,4.79411]
[1742824124533,4.79363,2086.1,2085.7,9.63249]
[1742824124826,4.79356,2086.2,2085.7,9.68034924]
[1742824125068,4.79356,2086.2,2085.8,4.79423]
[1742824125219,4.79364,2086.1,2085.7,9.63241]
[1742824125415,4.79387,2086.0,2085.7,4.838]
[1742824125623,4.79368,2086.1,2085.7,14.42695]
[1742824125809,4.79348,2086.2,2085.8,4.79431]
[1742824126130,4.79374,2086.1,2085.7,9.6324]
[1742824126326,4.79348,2086.2,2085.7,9.6324]
[1742824126499,4.79367,2086.1,2085.7,9.6324]
[1742824126700,4.79347,2086.2,2085.8,9.58846]
[1742824126897,4.79363,2086.1,2085.8,4.79421]
[1742824127100,4.79347,2086.2,2085.8,4.79421]
[1742824127319,4.79347,2086.2,2085.8,5.4921]
[1742824127601,4.79365,2086.1,2085.8,5.4921]
[1742824127801,4.79365,2086.1,2085.8,0.6979]
[1742824128001,4.79347,2086.2,2085.8,0.6979]
[1742824128231,4.79347,2086.2,2085.9,4.79407]
[1742824128614,4.79347,2086.2,2085.8,5.49215]
[1742824128940,4.79394,2086.0,2085.7,4.838]
[1742824129134,4.79412,2085.9,2085.8,4.831]
[1742824129427,4.79412,2085.9,2085.8,0.11495598]
[1742824129629,4.79412,2085.9,2085.7,4.831]
[1742824129833,5.752926,2085.9,2085.8,0.11495598]
[1742824130064,4.79432,2085.8,2085.7,4.831]
[1742824130330,4.79373,2086.1,2085.8,4.79425]
[1742824130503,9.58756,2086.1,2085.7,10.43870676]
[1742824130704,9.58751,2086.1,2085.9,0.11458523]
[1742824130934,4.79373,2086.1,2085.8,0.11495598]
[1742824131102,4.79373,2086.1,2086.0,0.11421452]
[1742824131325,9.58755,2086.1,2085.9,0.11458523]
[1742824131637,4.79373,2086.1,2086.0,0.11421452]
[1742824131825,4.79373,2086.1,2085.7,10.32335]
[1742824132145,4.79386,2086.0,2085.8,0.11495598]
[1742824132317,9.58789,2086.0,2085.8,0.11495598]
[1742824132636,4.79386,2086.0,2085.9,0.11458523]
[1742824132834,4.79386,2086.0,2085.7,9.62553]
[1742824133042,4.79386,2086.0,2085.8,0.11510173]
[1742824133236,4.79462,2085.7,2085.3,4.79538]
[1742824133536,4.79462,2085.7,2085.5,4.828]
[1742824133907,4.79462,2085.7,2085.6,0.1155275]
[1742824135150,9.12342,2085.7,2085.6,0.1155275]
[1742824135437,4.79569,2085.3,2084.9,10.32019]
[1742824135632,4.79565,2085.3,2085.0,0.11833625]
[1742824135844,4.79578,2085.2,2085.0,0.11833625]
[1742824136658,4.79565,2085.3,2085.0,0.11833625]
[1742824136659,9.59114,2085.3,2085.0,0.11833625]
[1742824136807,4.79581,2085.2,2085.0,0.11833625]
[1742824137008,4.79531,2085.4,2085.0,4.91446625]
[1742824137241,9.59074,2085.4,2085.0,4.91441625]
[1742824137439,4.79549,2085.3,2085.0,0.11833625]
[1742824137639,3.0,2085.6,2085.0,0.11833625]
[1742824137846,9.59177,2085.2,2085.0,0.11833625]
[1742824138031,4.79593,2085.1,2085.0,0.11833625]
[1742824139254,4.79593,2085.1,2084.6,30.14395]
[1742824139255,4.7963,2085.0,2084.6,30.14395]
[1742824139541,4.79593,2085.1,2084.6,30.14395]
[1742824139542,4.79602,2085.1,2084.7,14.53116477]
[1742824139842,4.79571,2085.2,2084.8,4.79651]
[1742824140044,4.79571,2085.2,2084.9,0.11992253]
[1742824140045,10.146941,2085.2,2084.9,0.11992253]
[1742824140260,0.758,2085.3,2085.0,4.79608]
[1742824140467,0.758,2085.3,2084.9,0.11992253]
[1742824140468,4.79564,2085.3,2085.1,0.11918043]
[1742824140669,4.79559,2085.3,2084.9,5.49413]
[1742824140963,4.79559,2085.3,2085.0,0.11955146]
[1742824141136,9.59122,2085.3,2085.0,0.11955146]
[1742824141337,5.51251978,2085.3,2085.0,0.11955146]
[1742824141533,4.79593,2085.1,2085.0,0.11955146]
[1742824141736,5.51247978,2085.3,2085.0,0.11955146]
[1742824141961,3.0,2085.5,2085.2,4.79558]
[1742824142275,4.79501,2085.5,2085.3,0.11858434]
[1742824142440,7.79479,2085.6,2085.2,4.79558]
[1742824142640,7.79479,2085.6,2085.3,0.11858434]
[1742824142641,4.79518,2085.5,2085.3,0.11858434]
[1742824142826,4.79518,2085.5,2084.6,30.14388]
[1742824142827,4.79619,2085.0,2084.7,4.813]
[1742824143156,4.79619,2085.0,2084.8,0.11311667]
[1742824143157,4.79659,2084.9,2084.8,0.11311667]
[1742824143454,4.79662,2084.8,2084.1,0.6979]
[1742824143661,4.79718,2084.6,2084.2,4.91325403]
[1742824143958,4.79733,2084.5,2084.2,0.11534403]
[1742824144159,7.79708,2084.6,2084.2,0.11534403]
[1742824144458,4.79745,2084.5,2084.2,0.11534403]
[1742824144625,4.79755,2084.4,2084.2,0.11534403]
[1742824144829,4.79745,2084.5,2084.2,0.11534403]
[1742824145224,4.79755,2084.4,2084.2,0.11534403]
[1742824145428,4.79745,2084.5,2084.1,9.61113]
[1742824145725,4.79756,2084.4,2084.2,0.11648471]
[1742824145952,4.79777,2084.3,2084.2,0.11648471]
[1742824146146,4.4693123,2084.5,2084.2,0.11648471]
[1742824146362,4.79765,2084.4,2084.2,0.11648471]
[1742824146931,0.7629,2084.7,2084.2,0.11648471]
[1742824147236,5.62557,2085.0,2084.2,6.10508318]
[1742824147442,3.0,2084.9,2084.5,4.79708]
[1742824147763,4.79663,2084.8,2084.6,0.11587372]
[1742824148152,3.0,2084.9,2084.6,4.91295372]
[1742824148328,5.62547,2085.0,2084.6,4.91295372]
[1742824148536,3.0,2085.0,2084.8,4.79661]
[1742824148846,0.35316154,2085.2,2084.9,0.11432324]
[1742824149041,4.79616,2085.0,2084.9,0.11432324]
[1742824149240,4.79616,2085.0,2084.6,4.79703]
[1742824149436,4.79616,2085.0,2084.7,0.11506548]
[1742824149657,4.79639,2084.9,2084.7,0.11506548]
[1742824149860,9.59297,2084.9,2084.5,10.30304]
[1742824150058,4.79675,2084.8,2084.6,0.11461129]
[1742824150265,4.79725,2084.6,2084.2,0.6979]
[1742824150467,5.57081,2084.5,2084.3,0.11572502]
[1742824150669,4.79759,2084.4,2084.1,4.807]
[1742824150846,5.57081,2084.5,2084.2,0.11609633]
[1742824151043,0.7733,2084.5,2084.2,4.91396633]
[1742824151241,4.7971,2084.6,2084.2,1.56799896]
[1742824151561,5.62828,2084.7,2084.3,4.79775]
[1742824151738,4.79709,2084.6,2084.2,6.36582896]
[1742824151939,4.79709,2084.6,2084.4,0.11535374]
[1742824152132,4.79709,2084.6,2084.3,0.11572502]
[1742824152366,4.79709,2084.6,2084.5,0.11498249]
[1742824152865,5.62821,2084.7,2084.3,4.79776]
[1742824153173,4.79709,2084.6,2084.4,0.11535374]
[1742824153467,4.79709,2084.6,2084.2,9.59566]
[1742824153769,5.62819,2084.7,2084.3,4.91347502]
[1742824154156,5.62819,2084.7,2084.3,0.11572502]
[1742824154374,6.491009,2084.7,2084.3,0.11572502]
[1742824154664,6.491009,2084.7,2084.4,0.11535374]
[1742824155179,4.79708,2084.6,2084.4,0.11535374]
[1742824155667,4.79708,2084.6,2084.5,0.11643874]
[1742824155855,4.79708,2084.6,2084.2,9.59287]
[1742824156069,4.79708,2084.6,2084.3,0.11718127]
[1742824156266,4.79708,2084.6,2084.2,9.59287]
[1742824156563,9.59435,2084.6,2084.3,0.11718127]
[1742824156868,4.79735,2084.5,2084.2,4.795]
[1742824157076,4.79735,2084.5,2084.3,0.11718127]
[1742824157378,4.79735,2084.5,2084.2,4.795]
[1742824157543,5.9259369,2084.6,2084.4,0.11680999]
[1742824157739,4.79666,2084.8,2084.3,0.11718127]
[1742824158062,3.0,2085.0,2084.6,4.79701]
[1742824158246,3.0,2085.0,2084.7,14.50105457]
[1742824158443,3.0,2085.1,2084.7,9.70431457]
[1742824158654,7.79597,2085.1,2084.7,9.70431457]
[1742824158864,7.79597,2085.1,2084.8,4.79661]
[1742824159069,7.79597,2085.1,2084.9,0.11585233]
[1742824159070,3.0,2085.1,2084.9,0.11585233]
[1742824159274,3.0,2084.9,2084.2,0.6979]
[1742824159453,3.7596,2084.5,2083.9,0.6979]
[1742824159752,4.79759,2084.4,2084.0,4.79833]
[1742824159941,4.7978,2084.3,2083.9,0.6979]
[1742824160135,4.79787,2084.3,2083.9,5.4889]
[1742824160340,4.79755,2084.4,2084.0,4.79834]
[1742824160543,0.7596,2084.5,2084.1,4.79812]
[1742824160544,5.557,2084.5,2084.1,4.79812]
[1742824161173,5.557,2084.5,2084.1,4.79804]
[1742824161494,3.0,2084.5,2084.2,4.79784]
[1742824161840,3.0,2084.5,2084.2,9.59574]
[1742824162052,0.7998,2084.8,2084.4,4.79741]
[1742824162391,8.59656,2084.8,2084.4,4.79741]
[1742824162538,13.39336,2084.8,2084.4,4.79741]
[1742824162745,4.79689,2084.7,2084.3,10.28455]
[1742824162966,4.79689,2084.7,2084.3,15.08219]
[1742824163168,8.59656,2084.8,2084.4,4.79745]
[1742824163445,8.59656,2084.8,2084.3,11.792759]
[1742824163446,3.7998,2084.8,2084.3,4.789]
[1742824163662,4.79754,2084.4,2084.3,4.789]
[1742824163875,5.60224,2084.4,2084.1,4.79822]
[1742824164143,9.59492,2084.5,2084.1,4.79807]
[1742824164792,4.79739,2084.5,2084.1,4.79807]
[1742824165197,7.79715,2084.6,2084.2,4.79792]
[1742824165493,4.79715,2084.6,2084.2,9.59577]
[1742824165672,4.79734,2084.5,2084.2,4.79785]
[1742824165877,4.79715,2084.6,2084.2,4.79785]
[1742824166394,9.59442,2084.6,2084.2,4.79785]
[1742824166600,9.59441,2084.6,2084.2,4.79785]
[1742824166778,4.79715,2084.6,2084.2,4.79785]
[1742824167186,4.79734,2084.5,2084.2,4.79785]
[1742824167389,4.79692,2084.7,2084.3,5.49545]
[1742824167699,9.59394,2084.7,2084.3,5.49545]
[1742824167910,4.79692,2084.7,2084.3,5.49545]
[1742824168800,4.79692,2084.7,2084.3,10.2931]
[1742824168979,4.79692,2084.7,2084.3,5.49545]
[1742824169182,4.79692,2084.7,2084.3,10.29306]
[1742824169376,4.79692,2084.7,2084.3,0.6979]
[1742824169581,4.79719,2084.6,2084.3,4.79775]
[1742824169994,4.79692,2084.7,2084.5,0.07181]
[1742824171904,4.79708,2084.6,2084.5,0.07181]
[1742824172081,4.79691,2084.7,2084.5,0.07181]
[1742824172285,5.55194,2084.8,2084.5,0.07181]
[1742824172685,10.34875,2084.8,2084.5,0.07181]
[1742824172886,5.55194,2084.8,2084.5,0.07181]
[1742824173101,4.79695,2084.7,2084.5,0.07181]
[1742824173287,4.79708,2084.6,2084.5,0.07181]
[1742824173687,4.79708,2084.6,2084.3,4.79764]
[1742824173888,4.79695,2084.7,2084.3,9.59528]
[1742824174089,8.55195,2084.8,2084.4,4.79751]
[1742824174388,13.34877,2084.8,2084.5,0.10836594]
[1742824174588,4.79687,2084.7,2084.5,0.10836594]
[1742824175182,4.79708,2084.6,2084.5,0.10836594]
[1742824175382,4.79692,2084.7,2084.5,0.10836594]
[1742824175583,4.79692,2084.7,2084.3,4.79762]
[1742824175784,4.79692,2084.7,2084.6,0.10799473]
[1742824175987,4.79692,2084.7,2084.4,4.79745]
[1742824176330,7.79648,2084.9,2084.6,0.10799473]
[1742824176518,14.0150695,2084.9,2084.6,0.10799473]
[1742824176714,4.79665,2084.8,2084.6,0.10799473]
[1742824177215,12.59303,2084.9,2084.6,0.10799473]
[1742824177433,4.79623,2085.0,2084.6,0.10799473]
[1742824177591,3.0,2085.1,2084.8,4.79651]
[1742824177934,3.0,2085.1,2084.9,0.10688132]
[1742824178091,7.79596,2085.1,2084.9,0.10688132]
[1742824178533,4.79639,2084.9,2084.6,4.79706]
[1742824178683,4.7962,2085.0,2084.6,4.79698]
[1742824178890,12.59254,2085.0,2084.6,4.79698]
[1742824179089,4.79654,2084.9,2084.5,5.49521]
[1742824179407,4.79692,2084.7,2084.4,4.754]
[1742824180486,4.79712,2084.6,2084.4,4.754]
[1742824180686,4.79692,2084.7,2084.4,4.754]
[1742824181216,4.7969,2084.7,2084.4,9.5515]
[1742824181446,5.62883,2084.9,2084.5,4.7972]
[1742824181638,4.79664,2084.8,2084.5,4.7972]
[1742824182008,3.0,2084.9,2084.6,4.79706]
[1742824182336,4.79673,2084.8,2084.4,11.056117]
[1742824182897,4.79673,2084.8,2084.4,15.853457]
[1742824183093,4.79673,2084.8,2084.4,11.056057]
[1742824183498,4.79673,2084.8,2084.4,9.55134]
[1742824183693,0.55,2084.9,2084.4,4.754]
[1742824183950,4.79718,2084.6,2084.4,4.754]
[1742824184223,4.725366,2084.6,2084.4,4.754]
[1742824184410,4.79731,2084.5,2084.4,4.754]
[1742824184995,4.725366,2084.6,2084.4,4.754]
[1742824185233,4.79731,2084.5,2084.4,4.754]
[1742824186140,4.725366,2084.6,2084.4,4.754]
[1742824186341,9.522646,2084.6,2084.4,4.754]
[1742824186952,4.79731,2084.5,2084.1,5.49595]
[1742824187262,4.79778,2084.3,2084.1,4.764]
[1742824187931,4.79778,2084.3,2084.0,4.766]
[1742824188120,4.79808,2084.2,2084.0,4.766]
[1742824188326,4.79764,2084.4,2084.0,9.56437]
[1742824188523,4.79735,2084.5,2084.1,4.79805]
[1742824188747,4.79735,2084.5,2084.1,5.824245]
[1742824189227,4.79735,2084.5,2084.2,0.10916478]
[1742824189471,4.79735,2084.5,2084.2,4.90715478]
[1742824189677,9.59486,2084.5,2084.2,0.10916478]
[1742824189845,9.59483,2084.5,2084.2,0.10916478]
[1742824190376,4.79735,2084.5,2084.2,0.10916478]
[1742824190973,4.79754,2084.4,2084.2,0.10916478]
[1742824191129,5.56149,2084.6,2084.2,0.10916478]
[1742824191335,4.79732,2084.5,2084.2,0.10916478]
[1742824191768,4.79756,2084.4,2084.2,0.10916478]
[1742824192274,5.56151,2084.6,2084.2,4.90709478]
[1742824192446,5.56151,2084.6,2084.3,0.6979]
[1742824192447,4.79711,2084.6,2084.3,0.6979]
[1742824192789,4.79711,2084.6,2084.4,0.10842218]
[1742824193285,3.0,2084.6,2084.4,0.10842218]